Cogmind - Beta 11.1 @@@ ROGUE MODE // 2022.06.20 @ 01:10:14 Player: Man Suit Result: Destroyed by 8R-AWN with 8R-AWN's Boregun Performance ------------- Evolutions (1) 500 Regions Visited (5) 1000 Robots Destroyed (62) 310 Value Destroyed (1317) 1317 Prototype IDs (2) 40 Alien Tech Used (0) 0 Bonus (118) 118 TOTAL SCORE: 3285 Bonus ------- High Alert Combat Kills 111 Follower Combat Kills 7 Cogmind --------- Core Integrity 0/400 Matter 221/300 Energy 14/100 System Corruption 4% Temperature Cool (0) Movement Core (50) Location -9/Exiles Parts ------- > --- POWER (1) -------- (None) > --- PROPULSION (2) --- (None) > --- UTILITY (4) ------ (None) > --- WEAPON (2) ------- (None) > --- INVENTORY (5) ---- Assault Cannon Peak State ------------ > --- POWER ------------ Light Nuclear Core > --- PROPULSION ------- Improved Treads Improved Treads > --- UTILITY ---------- Improved Heat Sink Experimental Sensor Array Improved Signal Interpreter Improved Targeting Computer > --- WEAPON ----------- Pulse Rifle Beamcaster > --- INVENTORY -------- Aluminum Leg Aluminum Leg Beam Rifle Heavy Particle Cannon Assault Cannon [Rating: 33] Favorites ----------- Power Light Ion Engine Engine Light Ion Engine Power Core Light Nuclear Core Propulsion Improved Treads Treads Improved Treads Leg Carbon-fiber Leg Hover Unit Hover Unit Utility Improved Heat Sink Device Improved Heat Sink Processor Targeting Computer Protection Light Armor Plating Weapon Pulse Rifle Energy Gun Pulse Rifle Energy Cannon Heavy Particle Cannon Ballistic Gun Light Assault Rifle Launcher Rocket Launcher Build | -11 -10 -10 -9 -9 -9 ------- Run | Scr Mat Min Mat Min Exi Slots Evolved 2 | . . . 2 . . Power . | . . . . . . Propulsion . | . . . . . . Utility 2 | . . . 2 . . Weapon . | . . . . . . Parts Attached 64 | 5 13 11 25 6 4 Power 9 | 1 1 . 5 2 . Engine 8 | 1 1 . 5 1 . Core 1 | . . . . 1 . Reactor . | . . . . . . Propulsion 13 | 2 4 2 3 . 2 Treads 2 | . . . 2 . . Leg 7 | 2 . 2 1 . 2 Wheel . | . . . . . . Hover 4 | . 4 . . . . Flight . | . . . . . . Utility 13 | . 4 . 7 2 . Device 4 | . 2 . 1 1 . Storage . | . . . . . . Processor 6 | . 1 . 4 1 . Hackware . | . . . . . . Protection 3 | . 1 . 2 . . Artifact . | . . . . . . Weapon 29 | 2 4 9 10 2 2 Energy Gun 15 | . 3 6 5 1 . Energy Cannon 2 | . . . 1 . 1 Ballistic Gun 2 | 2 . . . . . Ballistic Cannon . | . . . . . . Launcher 10 | . 1 3 4 1 1 Special Weapon . | . . . . . . Impact Weapon . | . . . . . . Slashing Weapon . | . . . . . . Piercing Weapon . | . . . . . . Special Melee Weapon . | . . . . . . Unidentified Prototypes 2 | . 1 . . 1 . Parts Lost 12 | . . . 5 . 7 Power 3 | . . . 2 . 1 Propulsion 3 | . . . 1 . 2 Utility 2 | . . . 1 . 1 Weapon 4 | . . . 1 . 3 Highest Loss Streak 7 | . . . 2 . 7 To Critical Strikes 5 | . . . . . 5 Average Slot Usage (%) 95 | . 93 99 87 100 93 Engine 8 | . 14 14 10 1 . Core 3 | . . . . 9 9 Treads 9 | . . . 4 22 18 Leg 8 | . 14 10 16 . 3 Hover 5 | . 13 17 . . . Device 15 | . 11 14 12 18 22 Processor 16 | . 5 14 17 22 18 Protection 2 | . 5 . 3 3 . Energy Gun 22 | . 27 23 19 21 18 Launcher 1 | . . 4 . . 1 Naked Turns 4 | . . . . . 4 Heaviest Build 21 | 6 12 12 21 19 16 Greatest Support 46 | 20 20 27 46 46 46 Greatest Overweight (x) 1 | . 1 . 1 . . Average Overweight (x) . | . . . . . . Largest Inventory Capacity 5 | 5 5 5 5 5 5 Average Capacity 5 | 5 5 5 5 5 5 Most Carried 5 | 4 5 5 5 5 5 Average Carried 4 | 2 4 4 4 4 4 Final Capacity 5 | 5 5 5 5 5 5 Final Carried 5 | 4 5 5 5 5 1 Class Distribution -------------------- 72% | Mutant 27% | Scavenger-Mutant Dominant Class ---------------- Mutant | -10/Materials Mutant | -10/Mines Scavenger-Mutant | -9/Materials Mutant | -9/Mines Mutant | -9/Exiles Resources | -11 -10 -10 -9 -9 -9 ----------- Run | Scr Mat Min Mat Min Exi Matter Collected 1013 | 131 259 163 310 150 . Remotely . | . . . . . . Salvage Created 1551 | . 342 160 814 197 38 Parts 111 | . 19 17 52 23 . Haulers Intercepted 1 | . 1 . . . . Recyclers Shooed . | . . . . . . Parts Field Recycled . | . . . . . . Retrieved Matter . | . . . . . . Parts Self-Destructed . | . . . . . . Prevented . | . . . . . . Kills | -11 -10 -10 -9 -9 -9 ------- Run | Scr Mat Min Mat Min Exi Combat Hostiles Destroyed 57 | . 9 8 23 11 6 Guns 32 | . 6 3 11 9 3 Cannons 1 | . . . 1 . . AOE 23 | . 3 5 10 2 3 Classes Destroyed 10 | . 4 2 3 . 1 Worker 2 | . . 1 . 1 . Builder 1 | . . . 1 . . Tunneler 1 | . . 1 . . . Hauler 1 | . 1 . . . . Recycler 2 | . . . 2 . . Watcher 4 | . 1 . 3 . . Swarmer 28 | . 3 5 11 9 . Grunt 18 | . 6 3 7 2 . Sentry 5 | . . . 5 . . Assembled 6 | . . . . . 6 Best Kill Streak 8 | . 5 4 8 8 5 Combat Bots Only 7 | . 3 3 6 7 5 Max Kills in Single Turn 4 | . 3 2 4 2 2 Gunslinging . | . . . . . . Exploded 3 | . 3 2 3 2 2 Melee . | . . . . . . Uniques/NPCs Destroyed . | . . . . . . Combat | -11 -10 -10 -9 -9 -9 -------- Run | Scr Mat Min Mat Min Exi Damage Taken 2049 | . 239 84 705 193 828 Core 517 | . 100 9 112 53 243 Absorbed by Shields . | . . . . . . Redirected to Shielding 20 | . 20 . . . . Regen/Repaired (Parts) 43 | . . . 43 . . Core Remaining (%) 78 | 100 . 56 . . . Volleys Fired 98 | . 18 9 42 17 12 Largest 2 | . 2 2 2 2 2 Hottest 150 | . 112 119 150 138 150 Shots Fired 175 | . 34 13 70 33 25 Gun 147 | . 33 8 58 32 16 Cannon 10 | . . . 6 . 4 Launcher 18 | . 1 5 6 1 5 Special . | . . . . . . Kinetic . | . . . . . . Thermal 157 | . 33 8 64 32 20 Explosive 18 | . 1 5 6 1 5 Electromagnetic . | . . . . . . Robot Hit Streak 16 | . 16 16 11 12 7 Robot Miss Streak 3 | . 3 1 2 1 3 Penetration Max . | . . . . . . Secondary Targets . | . . . . . . Shots Hit Robots 122 | . 25 11 49 21 16 Core Hits 82 | . 13 11 34 13 11 Critical Kills . | . . . . . . Critical Parts Destroyed . | . . . . . . Critical Strikes 11 | . 1 1 6 3 . Burn 11 | . 1 1 6 3 . Melee Attacks . | . . . . . . Impact . | . . . . . . Slashing . | . . . . . . Piercing . | . . . . . . Sneak Attacks . | . . . . . . Combat Hostiles . | . . . . . . Follow-up Attacks . | . . . . . . Damage Inflicted 3582 | . 540 578 1642 525 297 Guns 1908 | . 407 137 824 435 105 Cannons 131 | . . . 125 . 6 Explosions 1543 | . 133 441 693 90 186 Melee . | . . . . . . Ramming . | . . . . . . Kinetic . | . . . . . . Thermal 2039 | . 407 137 949 435 111 Explosive 1543 | . 133 441 693 90 186 Electromagnetic . | . . . . . . Impact . | . . . . . . Slashing . | . . . . . . Piercing . | . . . . . . Highest Corruption 4 | . . . 4 4 4 Average Corruption 3 | . . . 3 4 4 Corruption Purged . | . . . . . . Corruption Blocked . | . . . . . . Effects 34 | . . . 11 18 5 Message Errors 9 | . . . 3 6 . Matter Fused 8 | . . . 2 4 2 Heat Flow Errors 3 | . . . 1 2 . Energy Discharges 4 | . . . 2 1 1 Data Loss (minor) 5 | . . . 2 2 1 Data Loss (major) 2 | . . . 1 1 . Misfires 2 | . . . . 1 1 Weapon Failures 1 | . . . . 1 . Overload Shots . | . . . . . . Overflow Damage 36 | . . . 33 . 3 Projectiles . | . . . . . . Explosions 36 | . . . 33 . 3 Melee . | . . . . . . Knockbacks . | . . . . . . Impact . | . . . . . . Kinetic . | . . . . . . Secondary . | . . . . . . Self-Inflicted Damage 264 | . 39 34 185 . 6 Shots 9 | . 1 2 5 . 1 Rammed . | . . . . . . Targets Rammed . | . . . . . . Kicked . | . . . . . . Crushed . | . . . . . . Highest Temperature 319 | . 291 48 280 319 179 Average Temperature 81 | . 74 24 70 131 59 Received Heat Transfer 462 | . 93 15 216 18 120 Effects 6 | . 3 . 1 2 . Energy Bleed 1 | . . . . 1 . Interference 4 | . 3 . 1 . . Matter Decay 1 | . . . . 1 . Siege Activations . | . . . . . . Robots Corrupted . | . . . . . . Combat Hostiles . | . . . . . . Parts Fried . | . . . . . . Impact Corruptions . | . . . . . . Robots Melted 1 | . . . 1 . . Combat Hostiles 1 | . . . 1 . . Parts Melted 9 | . 1 . 6 2 . Heat Transferred 4864 | . 962 370 2220 1073 239 Parts Sabotaged . | . . . . . . Parts Stolen . | . . . . . . Parts Stripped . | . . . . . . Power Chain Reactions . | . . . . . . Missiles Intercepted . | . . . . . . Alert | -11 -10 -10 -9 -9 -9 ------- Run | Scr Mat Min Mat Min Exi Peak Influence 705 | . 297 367 705 489 . Initial 274 | . . 49 65 274 . Average 291 | . 104 232 403 361 . Maximum Alert Level 3 | . 1 1 3 2 . Low Security (%) 33 | 100 85 52 21 . . Level 1 40 | . 14 47 28 61 . Level 2 22 | . . . 39 38 . Level 3 2 | . . . 10 . . Level 4 . | . . . . . . Level 5 . | . . . . . . High Security . | . . . . . . Max Security . | . . . . . . Squads Dispatched 5 | . 1 1 3 . . Investigation 3 | . 1 1 1 . . Extermination . | . . . . . . Reinforcement 2 | . . . 2 . . Assault . | . . . . . . Garrison . | . . . . . . Intercept . | . . . . . . Searches Triggered . | . . . . . . Construction Impeded 1 | . . . 1 . . Haulers Reinforced . | . . . . . . Active Scanning Responses . | . . . . . . Cargo Convoy Interrupts . | . . . . . . Stealth | -11 -10 -10 -9 -9 -9 --------- Run | Scr Mat Min Mat Min Exi Distress Signals 3 | . 1 1 1 . . Communications Jammed . | . . . . . . Distress Signals . | . . . . . . Times Spotted 68 | . 12 7 28 11 10 Peak Tracking Total 10 | . 3 3 4 4 10 Tactical Retreats 4 | . 1 . 1 . 2 Traps | -11 -10 -10 -9 -9 -9 ------- Run | Scr Mat Min Mat Min Exi Traps Triggered 2 | . . . 2 . . Indirectly . | . . . . . . Trap Hack Attempts . | . . . . . . Triggered . | . . . . . . Disarmed . | . . . . . . Reprogrammed . | . . . . . . Reused . | . . . . . . Traps Extracted . | . . . . . . Installed . | . . . . . . Triggered . | . . . . . . Machines | -11 -10 -10 -9 -9 -9 ---------- Run | Scr Mat Min Mat Min Exi Machines Disabled 7 | . . 2 1 . 4 Max in Single Turn 2 | . . 2 1 . 2 Machines Sabotaged . | . . . . . . Garrisons Compromised . | . . . . . . Overloaded Fab Kills . | . . . . . . Hacking | -11 -10 -10 -9 -9 -9 --------- Run | Scr Mat Min Mat Min Exi Machines Accessed 13 | . 5 1 7 . . Terminals 9 | . 5 . 4 . . Fabricators . | . . . . . . Repair Stations 1 | . . . 1 . . Recycling Units 1 | . . . 1 . . Scanalyzers 1 | . . . 1 . . Garrison Access . | . . . . . . Total Hacks 26 | . 10 1 15 . . Successful 16 | . 3 1 12 . . Failed 10 | . 7 . 3 . . Catastrophic 2 | . 1 . 1 . . Database Lockouts . | . . . . . . Manual 10 | . 7 . 3 . . Terminals 15 | . 10 . 5 . . Fabricators . | . . . . . . Repair Stations 3 | . . . 3 . . Recycling Units 1 | . . . 1 . . Scanalyzers 6 | . . . 6 . . Garrison Access . | . . . . . . Terminal Hacks 7 | . 3 1 3 . . Open Door 1 | . . 1 . . . Branch Access Points 1 | . . . 1 . . Alert Level 1 | . . . 1 . . Locate Traps 3 | . 2 . 1 . . Zone Layout 1 | . 1 . . . . Fabricator Hacks . | . . . . . . Repair Station Hacks 2 | . . . 2 . . Scan Component 1 | . . . 1 . . Repair 1 | . . . 1 . . Recycling Unit Hacks 1 | . . . 1 . . Report Inventory 1 | . . . 1 . . Scanalyzer 6 | . . . 6 . . Insert Component 3 | . . . 3 . . Analyze 3 | . . . 3 . . Garrison Access Hacks . | . . . . . . Unauthorized Hacks . | . . . . . . Terminals . | . . . . . . Fabricators . | . . . . . . Repair Stations . | . . . . . . Recycling Units . | . . . . . . Scanalyzers . | . . . . . . Garrison Access . | . . . . . . Data Cores Recovered . | . . . . . . Used . | . . . . . . Hacking Detections 10 | . 5 . 5 . . Full Trace Events 3 | . 2 . 1 . . Feedback Events 1 | . . . 1 . . Corruption 1 | . . . 1 . . Feedback Blocked . | . . . . . . Robot Schematics Acquired . | . . . . . . Robots Built . | . . . . . . Authchips . | . . . . . . Time . | . . . . . . Total Robot Build Rating . | . . . . . . Part Schematics Acquired 3 | . . . 3 . . Parts Built . | . . . . . . Authchips . | . . . . . . Time . | . . . . . . Total Part Build Rating . | . . . . . . Parts Repaired 1 | . . . 1 . . Time 38 | . . . 38 . . Parts Recycled . | . . . . . . Recycled Matter . | . . . . . . Retrieved Matter . | . . . . . . Retrieved Components . | . . . . . . Parts Scanalyzed 3 | . . . 3 . . Part Schematics Acquired 3 | . . . 3 . . Parts Damaged . | . . . . . . Bothacking | -11 -10 -10 -9 -9 -9 ------------ Run | Scr Mat Min Mat Min Exi Used RIF Installer . | . . . . . . Robots Hacked . | . . . . . . Non-combat . | . . . . . . Combat . | . . . . . . Robot Hacks Applied . | . . . . . . Relay Couplers Released . | . . . . . . Fabnet Peak Effective % . | . . . . . . Robots Rewired . | . . . . . . Allies Hacked . | . . . . . . Hacks Repelled . | . . . . . . Allies | -11 -10 -10 -9 -9 -9 -------- Run | Scr Mat Min Mat Min Exi Total Allies 4 | . . . . 4 . Largest Group 4 | . . . . 4 3 Highest-Rated Group 71 | . . . . 71 40 Highest-Rated Ally 31 | . . . . 31 16 Total Orders . | . . . . . . Ally Attacks 12 | . . . . 1 11 Total Damage 89 | . . . . 11 78 Kills 2 | . . . . 1 1 Allies Corrupted . | . . . . . . Allies Melted . | . . . . . . Intel | -11 -10 -10 -9 -9 -9 ------- Run | Scr Mat Min Mat Min Exi Robot Analysis Total . | . . . . . . Derelict Logs Recovered 3 | . . 1 . 2 . Drone Launches . | . . . . . . Drone Recoveries . | . . . . . . Exploration | -11 -10 -10 -9 -9 -9 ------------- Run | Scr Mat Min Mat Min Exi Turns Passed 2926 | 82 424 637 673 927 183 Spaces Moved 2224 | 65 376 791 369 526 97 Core 20 | 12 . . . . 8 Treads 687 | . . . 82 526 79 Legs 731 | 53 165 216 287 . 10 Wheels . | . . . . . . Hover 786 | . 211 575 . . . Flight . | . . . . . . Fastest Speed 50 | 50 56 56 105 160 50 Average Speed 106 | 107 84 69 123 160 146 Slowest Speed 190 | 120 120 105 190 160 160 Overloaded Moves . | . . . . . . Propulsion Burnouts . | . . . . . . Robots Hopped . | . . . . . . Cave-ins Triggered . | . . . . . . Exploration Rate (%) 54 | 4 52 99 42 95 37 Regions Visited 5 Branch Regions 3 Pre-discovered Areas 2 | . . 1 . 1 . Known Exits Taken 2 | . . . 1 1 . Unknown Exits Taken 3 | 1 1 1 . . . Scrap Searched 2 | . . 1 . 1 . Spaces Dug . | . . . . . . Terrain Destroyed 115 | . 8 27 47 11 22 Melee . | . . . . . . Projectile 1 | . . . 1 . . AOE 114 | . 8 27 46 11 22 Terrain Rammed . | . . . . . . Walls Destroyed . | . . . . . . Machines Disabled . | . . . . . . Actions | -11 -10 -10 -9 -9 -9 --------- Run | Scr Mat Min Mat Min Exi Total 2594 | 76 448 865 513 579 113 Wait 150 | . 23 39 66 22 . Move 2219 | 64 375 790 368 525 97 Hop . | . . . . . . Pick Up 25 | 7 5 7 3 3 . Fast Attach 26 | 2 8 2 11 3 . Attach 12 | 3 . 1 3 1 4 Detach 6 | . 2 . 3 1 . Swap 26 | . 5 8 11 2 . Drop 32 | . 12 9 6 5 . Fire 98 | . 18 9 42 17 12 Melee . | . . . . . . Ram . | . . . . . . Kick . | . . . . . . Crush . | . . . . . . Escape Stasis . | . . . . . . Rewire . | . . . . . . Trap . | . . . . . . Miscellaneous . | . . . . . . Route ------- -11/Scrapyard -10/Materials -10/Mines (discovered 2 exits: *Mat x2) -9/Materials (discovered 3 exits: *Mat / *Min x2) -9/Mines (discovered 3 exits: *Mat x2 / *Exi) -9/Exiles History --------- Turn | Location | Event 3 | -11/Scrapyard | Discovered new exit (range 16) 83 | -11/Scrapyard | Entered Materials 260 | -10/Materials | Discovered new exit (range 15) 303 | -10/Materials | Build established: Mutant 507 | -10/Materials | Entered Mines 541 | -10/Mines | Met a Derelict shopkeep closing up shop 575 | -10/Mines | Discovered new exit (range 10) 577 | -10/Mines | Learned location of Storage (-7) 645 | -10/Mines | Received a Rocket Launcher from a helpful Derelict 828 | -10/Mines | Discovered new exit (range 6) 1144 | -10/Mines | Entered Materials 1144 | -9/Materials | Evolved 2 slots: Utility x2 1173 | -9/Materials | Discovered new exit (range 10) 1516 | -9/Materials | Repaired Pulse Rifle 1651 | -9/Materials | Discovered new exit (range 16) 1684 | -9/Materials | Identified exit to Mines 1817 | -9/Materials | Entered Mines 1859 | -9/Mines | Build established: Scavenger-Mutant 1877 | -9/Mines | Discovered new exit (range 15) 1888 | -9/Mines | Destroyed 7 combat bots 2037 | -9/Mines | Deemed a non-threat by the Exiles lab entrance 2037 | -9/Mines | Discovered new exit (range 5) 2041 | -9/Mines | Identified exit to Exiles 2067 | -9/Mines | Found a damaged Exp. Sensor Array with a note attached 2071 | -9/Mines | Found Prototype Device 2071 | -9/Mines | Identified Exp. Sensor Array 2164 | -9/Mines | Received a Mining Laser from a helpful Derelict 2328 | -9/Mines | Learned 2 Materials zone layouts 2376 | -9/Mines | Assisted by bots powering up and referring to "LRC-V3" 2377 | -9/Mines | Build established: Mutant 2563 | -9/Mines | Discovered new exit (range 10) 2584 | -9/Mines | Identified exit to Materials 2744 | -9/Mines | Entered Exiles 2744 | -9/Exiles | Accompanied by 3 allies 2783 | -9/Exiles | Met 8R-AWN 2812 | -9/Exiles | Met EX-HEX 2836 | -9/Exiles | Attacked by the Exiles 2859 | -9/Exiles | Core integrity fell below 50% 2910 | -9/Exiles | Core integrity fell below 20% 2923 | -9/Exiles | Released all parts (6) 2927 | -9/Exiles | Destroyed by 8R-AWN with 8R-AWN's Boregun Last Messages --------------- 02914_ HV Slug penetrates Wall. 02914_ HV Slug penetrates FarCom Aligner. 02916_ Penetrated by HV Slug. 02916_ Critical hit (Destroy). 02916_ Hvy. Particle Cannon destroyed. 02916_ HV Slug penetrates FarCom Aligner. 02916_ Penetrated by HV Slug. 02916_ HV Slug penetrates FarCom Aligner. 02918_ Penetrated by HV Slug. 02918_ HV Slug penetrates FarCom Aligner. 02918_ Penetrated by HV Slug. 02918_ HV Slug penetrates FarCom Aligner. 02922_ Penetrated by HV Slug. 02922_ HV Slug penetrates FarCom Aligner. 02923_ Released Exp. Sensor Array. 02923_ Released Imp. Heat Sink. 02923_ Released Imp. Targeting Computer. 02923_ Released Beamcaster. 02923_ Released Aluminum Leg. 02927_ Penetrated by HV Slug. Map ----- +----------------------------------------------------+ | ?????????????????????????????????????????????????? | | ?????????????????????????????????????????????????? | | ?????????????????????????????????????????????????? | | ?????????????????????????????????????????????????? | | ?????????????????????????????????????????????????? | | ?????????????????????????????????????????????????? | | ?????????????????????????????????????????????????? | | ?????????????????????????????????????????????????? | | ?????????????????????????????????????????????????? | | ???????????????????????? ????????????????????? | | ???????????????????????# #???????????????????? | | ???????????????????????# ???????????????????? | | ???????????????????????# #???????????????????? | | ????????????????????#??# #???????????????????? | | ????????????????????""?# #???????????????????? | | ???????????????????? ## #???????????????????? | | ????????????????????? #???????????????????? | | ?????????????????????? ###?????????????????? | | ???????????????????????# # #?????????????????? | | ???????????????????????# # #########?????????? | | ???????????????????????# # #"" """#?????????? | | ???????????????????????# # #" " """#?????????? | | ???????????????????????# ; # = """#?????????? | | ??????????????????????## #;#"!!""""#?????????? | | ??????????????????????#" =[ """"#?????????? | | ??????????????????????#" @ """#?????????? | | ??????????????????????#" """#?????????? | | ??????????????????????#" """#?????????? | | ??????????????????????#" """#?????????? | | ??????????????????????#" """#?????????? | | ??????????????????????## """"?????????? | | ???????????????????????# """#?????????? | | ???????????????????????#" "X" """"?????????? | | ???????????????????????#" """ #?????????? | | ???????????????????????#" """"""""#?????????? | | ??????????????????????##" ########?????????? | | ?????????????????????##" # ????????????????? | | ??????????????????#?##"" #???????????????? | | ?????????????????""""""" g# #???????????????? | | ????????????????""" " "" #?###########???? | | ????????????????""" " ###"""""""""##??? | | ??????????????" " " """ """"##?? | | ??????????? "" " #?? | | ??????????? """#?? | | ???????????? " "#?? | | ???????????? = " "##? | | ????????????? [%[%! ""## | | ????????????? """""" %= """ | | ????????????? ######""" * " | | ?????????????? ""#?????##### "" | +----------------------------------------------------+ Best States ------------- Heat Dissipation 42 Energy Generation 14 Energy Capacity 275 Matter Stores 300 Matter Capacity 300 Sight Range 18 Robot Scan Range 20 Terrain Scan Density 10 Armor Coverage 150 Weapon Shielding 33 Evasion (%) 55 Targeting Accuracy 6 Recoil Reduction 2 Trap Extractor Capacity 4 Item Schematics ----------------- Rocket Launcher | -9/Materials | Scanalyzed Deuterium Engine | -9/Materials | Scanalyzed Hvy. Particle Cannon | -9/Materials | Scanalyzed Robot Schematics ------------------ None Fabricated ------------ Nothing Alien Tech Used ----------------- None Achievements -------------- None Challenges ------------ None Game ------ Seed DataSystemBeamcaster Manual? 0 Play Time 00:50:44 Cumulative 120.0 hours Start 2022.06.20 @ 00:10:00 End 2022.06.20 @ 01:10:14 Sessions 1 Manual Loads 0 Difficulty Rogue Special Mode None Game No. 38 Rogue 38 Adventurer 0 Explorer 0 Win Type - Total 0 Types 0/0/0/0/0/0/0/0/0 Lore% 36 Gallery% 54 Achievement% 43 Wizard Run 0 Options --------- ASCII 0 Keyboard 1 Movement Numpad Keybinds 0 Fullscreen 1 Font 12/Smallcaps Map View 83x54 Tactical HUD 1 Map Filters NONE Filters NONE Steam 1 RUN: fb3d6728-12bb-4fa4-8f38-c71f3d3e3878